Cogmind - Beta 15 @@@ ROGUE MODE // 2025.07.10 @ 17:04:18 Player: r@sin Result: Destroyed by B-99 Colossus with Multirail Performance ------------- Evolutions (9) 4500 Regions Visited (15) 3000 Robots Destroyed (36) 180 Value Destroyed (1406) 1406 Prototype IDs (10) 200 Alien Tech Used (0) 0 Bonus (22055) 22055 TOTAL SCORE: 31341 Bonus ------- Fragile Parts 2000 No Salvage 3223 Simple Hacker 11840 Unstable Evolution 4500 Follower Combat Kills 30 Entered DSFs 500 Friendly Fire -38 Cogmind --------- Core Integrity 0/1600 Matter 157/300 Energy 99/100 System Corruption 20% Temperature Cool (0) Movement Core (50) Location -1/Access Parts ------- > --- POWER (3) -------- (None) > --- PROPULSION (6) --- (None) > --- UTILITY (9) ------ (None) > --- WEAPON (7) ------- (None) > --- INVENTORY (5) ---- Enhanced Optical Array Peak State ------------ > --- POWER ------------ Micro Fission Core Compact Particle Reactor > --- PROPULSION ------- Impulse Thruster Impulse Thruster Array Impulse Thruster Array > --- UTILITY ---------- Improved Signal Interpreter Advanced Transmission Jammer Advanced Reaction Control System Cloaking Device Improved Medium Armor Plating Improved Point Defense System Makeshift Hacking Suite Improved Hacking Suite Advanced System Shield > --- WEAPON ----------- Vibroblade > --- INVENTORY -------- Impulse Thruster Array Impulse Thruster Array Hellfire Missile Launcher [Rating: 114] Favorites ----------- Power Backup Power I Engine Backup Power I Power Core Nuclear Core Reactor Compact Particle Reactor Propulsion Armored Treads Treads Armored Treads Leg Aluminum Leg Hover Unit Backup Propulsion I Flight Unit Improved Flight Unit Utility Small Storage Unit Device Trap Scanner Storage Small Storage Unit Processor Improved Signal Interpreter Hackware Makeshift Hacking Suite Protection Hardened Light Armor Plating Weapon Enhanced Autogun Energy Gun EM Pulse Gun Energy Cannon HERF Cannon Ballistic Gun Enhanced Autogun Launcher Grenade Launcher Slashing Weapon Vibroblade Piercing Weapon Makeshift Spear Build | -11 -10 -10 -10 -8 -8 -7 -6 -6 -6 -5 -5 -4 -3 -2 -1 ------- Run | Yrd Mat Min Sub Mat Sto Fac Fac Low Low Fac DSF Fac Res Res Acc Slots Evolved 18 | . . . . 4 . 2 2 . . 2 . 2 2 2 2 Power 2 | . . . . 1 . . . . . . . . 1 . . Propulsion 4 | . . . . . . . 1 . . . . . 1 1 1 Utility 7 | . . . . . . 2 1 . . 2 . 1 . 1 . Weapon 5 | . . . . 3 . . . . . . . 1 . . 1 Parts Attached 60 | 6 . . 1 2 14 2 3 8 . 2 1 3 7 8 3 Power 5 | 1 . . . . 2 . . . . . 1 . . 1 . Engine 2 | 1 . . . . 1 . . . . . . . . . . Core 2 | . . . . . 1 . . . . . 1 . . . . Reactor 1 | . . . . . . . . . . . . . . 1 . Propulsion 18 | 2 . . . . 5 . 2 3 . . . . 1 4 1 Treads 6 | . . . . . 4 . 2 . . . . . . . . Leg 2 | 2 . . . . . . . . . . . . . . . Wheel . | . . . . . . . . . . . . . . . . Hover 2 | . . . . . . . . . . . . . . 2 . Flight 8 | . . . . . 1 . . 3 . . . . 1 2 1 Utility 23 | 1 . . . 1 . 2 1 5 . 2 . 2 5 3 1 Device 9 | . . . . 1 . 2 . 1 . . . 1 2 2 . Storage 2 | 1 . . . . . . . . . . . . 1 . . Processor 4 | . . . . . . . . 1 . 2 . . . . 1 Hackware 4 | . . . . . . . . 3 . . . 1 . . . Protection 4 | . . . . . . . 1 . . . . . 2 1 . Artifact . | . . . . . . . . . . . . . . . . Weapon 14 | 2 . . 1 1 7 . . . . . . 1 1 . 1 Energy Gun 3 | 1 . . . 1 1 . . . . . . . . . . Energy Cannon 1 | . . . . . . . . . . . . . . . 1 Ballistic Gun 6 | 1 . . . . 5 . . . . . . . . . . Ballistic Cannon . | . . . . . . . . . . . . . . . . Launcher 2 | . . . 1 . . . . . . . . . 1 . . Special Weapon . | . . . . . . . . . . . . . . . . Impact Weapon . | . . . . . . . . . . . . . . . . Slashing Weapon 1 | . . . . . . . . . . . . 1 . . . Piercing Weapon 1 | . . . . . 1 . . . . . . . . . . Special Melee Weapon . | . . . . . . . . . . . . . . . . Unidentified Prototypes 6 | . . . . . 2 . . . . . . 1 2 1 . Parts Lost 29 | . . . 2 . 3 . 2 5 . . . . 1 . 16 Power 4 | . . . . . . . 1 2 . . . . . . 1 Propulsion 8 | . . . . . 2 . . 1 . . . . 1 . 4 Utility 11 | . . . . . . . 1 . . . . . . . 10 Weapon 6 | . . . 2 . 1 . . 2 . . . . . . 1 Highest Loss Streak 15 | . . . 1 . 2 . 1 5 . . . . 1 . 15 To Critical Strikes . | . . . . . . . . . . . . . . . . Average Backups 5 | 1 3 4 4 5 6 7 7 6 4 3 5 4 4 3 2 Power . | . 1 1 1 1 . . . . . . . . . . . Propulsion 2 | . 1 1 1 2 4 4 4 3 1 1 2 2 1 1 1 Utility 1 | . . . . . 1 2 3 2 2 1 1 . . . . Weapon 1 | . 1 2 1 2 . . . . 1 1 1 2 2 1 . Tool/Special . | . . . . . . . . . . . . . . . . Unused Backups 23 | . . . . . 5 4 1 1 . . 1 1 5 2 3 Power 1 | . . . . . . . . . . . 1 . . . . Propulsion 9 | . . . . . 3 1 1 . . . . 1 1 1 1 Utility 4 | . . . . . 1 1 . . . . . . 1 . 1 Weapon 9 | . . . . . 1 2 . 1 . . . . 3 1 1 Tool/Special . | . . . . . . . . . . . . . . . . Average Slot Usage (%) 79 | . 85 85 84 51 84 99 87 78 60 59 64 67 63 64 51 Engine 7 | . 14 14 14 9 14 7 2 2 . . . . . . . Core 2 | . . . . . 3 7 6 2 . . . 5 4 4 3 Treads 8 | . . . . . 14 15 18 14 . . . . . . . Leg 7 | . 28 28 28 18 1 . . . . . . . . . . Flight 3 | . . . . . . . . 2 20 17 17 15 17 13 10 Device 9 | . . . . 3 9 22 16 9 6 5 5 10 12 18 14 Storage 7 | . 14 14 14 9 9 7 6 5 . . . . . . . Processor 2 | . . . . . . . . 5 6 12 17 13 6 4 5 Hackware 2 | . . . . . . . . 3 13 11 11 11 14 10 7 Protection 2 | . . . . . . . 2 6 6 5 5 4 2 4 3 Energy Gun 4 | . 14 14 3 3 11 . . . . . . . . . . Ballistic Gun 12 | . 14 14 13 . 8 30 26 16 . . . . . . . Launcher 2 | . . . 11 9 5 . . . . . . . . . . Piercing Weapon 3 | . . . . . 6 7 6 6 6 5 5 4 . . . Peak Build Rating 114 | 6 6 6 6 12 36 43 46 50 36 42 48 65 86 114 112 Average Rating 34 | 4 6 6 5 8 23 42 44 39 36 40 42 54 71 106 96 On Entrance 35 | . 6 6 6 6 12 36 43 46 36 36 42 48 59 72 112 Naked Turns 30 | . . . . . . . . . . . . . . . 30 Heaviest Build 39 | 14 14 14 15 18 29 34 35 35 9 9 14 15 22 39 39 Greatest Support 70 | 20 20 20 20 20 42 42 70 70 10 10 16 16 23 39 39 Greatest Overweight (x) . | . . . . . . . . . . . . . . . . Average Overweight (x) . | . . . . . . . . . . . . . . . . Largest Inventory Capacity 8 | 8 8 8 8 8 8 8 8 8 5 5 5 5 5 5 5 Average Capacity 7 | 7 8 8 8 8 8 8 8 7 5 5 5 5 5 5 5 Most Carried 8 | 3 4 4 6 7 8 8 8 8 5 5 5 5 5 5 5 Average Carried 5 | 1 3 4 4 6 6 7 7 6 5 4 4 4 4 4 4 Final Capacity 8 | 8 8 8 8 8 8 8 8 5 5 5 5 5 5 5 5 Final Carried 8 | 3 4 4 6 6 8 8 7 5 5 5 5 5 5 5 1 Class Distribution -------------------- 50% | Mutant 12% | Gunner 10% | Tank 9% | Hacker-Mutant 8% | Skirmisher 3% | Infiltrator-Mutant 3% | Hacker-Sprinter Dominant Class ---------------- Mutant | -10/Materials Mutant | -10/Mines Mutant | -10/Subcaves Mutant | -8/Materials Skirmisher | -8/Storage Gunner | -7/Factory Tank | -6/Factory Mutant | -6/Lower Caves Hacker-Mutant | -6/Lower Caves Hacker-Mutant | -5/Factory Hacker-Mutant | -5/DSF Derelict-Mutant | -4/Factory Hacker-Sprinter | -3/Research Infiltrator-Mutant | -2/Research Hacker-Mutant | -1/Access Resources | -11 -10 -10 -10 -8 -8 -7 -6 -6 -6 -5 -5 -4 -3 -2 -1 ----------- Run | Yrd Mat Min Sub Mat Sto Fac Fac Low Low Fac DSF Fac Res Res Acc Matter Collected 1426 | 222 . 57 50 70 285 170 164 361 . . . . 47 . . Remotely . | . . . . . . . . . . . . . . . . Salvage Created 1374 | . . 97 145 . 413 170 164 289 . . . . 96 . . Parts . | . . . . . . . . . . . . . . . . Haulers Intercepted . | . . . . . . . . . . . . . . . . Recyclers Shooed . | . . . . . . . . . . . . . . . . Parts Field Recycled . | . . . . . . . . . . . . . . . . Retrieved Matter . | . . . . . . . . . . . . . . . . Parts Self-Destructed . | . . . . . . . . . . . . . . . . Prevented . | . . . . . . . . . . . . . . . . Kills | -11 -10 -10 -10 -8 -8 -7 -6 -6 -6 -5 -5 -4 -3 -2 -1 ------- Run | Yrd Mat Min Sub Mat Sto Fac Fac Low Low Fac DSF Fac Res Res Acc Combat Hostiles Destroyed 31 | . . 2 7 . 8 3 4 7 . . . . . . . Melee 1 | . . . . . 1 . . . . . . . . . . Guns 23 | . . 2 . . 7 3 4 7 . . . . . . . AOE 7 | . . . 7 . . . . . . . . . . . . Classes Destroyed 7 | . . 1 3 . 3 . . . . . . . . . . Watcher 5 | . . . . . 2 . 1 . . . . . 2 . . Swarmer 10 | . . . 3 . . . 3 4 . . . . . . . Grunt 10 | . . 2 . . 3 2 . 3 . . . . . . . Sentry 5 | . . . . . 4 1 . . . . . . . . . Hunter 2 | . . . . . 1 . 1 . . . . . . . . Subdweller 4 | . . . 4 . . . . . . . . . . . . Scientist 1 | . . . 1 . . . . . . . . . . . . Best Kill Streak 4 | . . 2 4 . 2 2 2 4 . . . . 1 . . Combat Bots Only 4 | . . 2 4 . 2 2 2 4 . . . . . . . Max Kills in Single Turn 2 | . . 1 2 . 1 1 2 1 . . . . 1 . . Gunslinging 1 | . . . . . . . 1 . . . . . . . . Exploded 2 | . . . 2 . . . . . . . . . . . . Melee 1 | . . . . . 1 . . . . . . . . . . Uniques/NPCs Destroyed . | . . . . . . . . . . . . . . . . Combat | -11 -10 -10 -10 -8 -8 -7 -6 -6 -6 -5 -5 -4 -3 -2 -1 -------- Run | Yrd Mat Min Sub Mat Sto Fac Fac Low Low Fac DSF Fac Res Res Acc Hostile Shots Fired 459 | . 1 9 25 3 46 36 32 83 . . . . 27 17 180 Missed 172 | . . 3 6 2 15 15 7 25 . . . . 14 12 73 Hits 287 | . 1 6 19 1 31 21 25 58 . . . . 13 5 107 Melee 20 | . . . . . . . . . . . . . . . 20 Projectile 267 | . 1 6 19 1 31 21 25 58 . . . . 13 5 87 AOE 2 | . . . . . . . . . . . . . . . 2 Critical Strikes 21 | . . 1 . . . . . 5 . . . . 1 . 14 Damage Taken 5904 | . 11 81 436 13 491 240 405 1033 . . . . 298 105 2791 Core 2205 | . . 20 102 13 73 23 38 193 . . . . 138 . 1605 Absorbed by Shields . | . . . . . . . . . . . . . . . . Core Remaining (%) 88 | 100 . . 51 . 84 96 . . 72 . 100 100 89 100 . Volleys Fired 93 | . . 8 16 . 27 8 17 17 . . . . . . . Largest 4 | . . 2 2 . 4 4 4 4 . . . . . . . Hottest 103 | . . 60 60 . 103 100 100 100 . . . . . . . Shots Fired 244 | . . 16 21 . 55 32 68 52 . . . . . . . Gun 231 | . . 16 10 . 53 32 68 52 . . . . . . . Cannon . | . . . . . . . . . . . . . . . . Launcher 13 | . . . 11 . 2 . . . . . . . . . . Special . | . . . . . . . . . . . . . . . . Kinetic 191 | . . 8 5 . 26 32 68 52 . . . . . . . Thermal 27 | . . . . . 27 . . . . . . . . . . Explosive 13 | . . . 11 . 2 . . . . . . . . . . Electromagnetic 13 | . . 8 5 . . . . . . . . . . . . Robot Hit Streak 15 | . . 5 8 . 15 6 6 14 . . . . . . . Robot Miss Streak 4 | . . 2 1 . 3 2 4 1 . . . . . . . Penetration Max . | . . . . . . . . . . . . . . . . Secondary Targets 4 | . . . . . . . 1 3 . . . . . . . Max Gunslinging Chain 1 | . . . . . . . 1 1 . . . . . . . Shots Hit Robots 176 | . . 11 15 . 42 20 37 44 . . . . 5 . 2 Core Hits 70 | . . 5 11 . 21 7 10 14 . . . . 2 . . Critical Kills . | . . . . . . . . . . . . . . . . Critical Parts Destroyed . | . . . . . . . . . . . . . . . . Critical Strikes 2 | . . . . . 1 . . . . . . . 1 . . Burn 1 | . . . . . 1 . . . . . . . . . . Sever 1 | . . . . . . . . . . . . . 1 . . Melee Attacks 28 | . . . . . 6 1 . 2 . . . . 13 1 5 Impact . | . . . . . . . . . . . . . . . . Slashing 19 | . . . . . . . . . . . . . 13 1 5 Piercing 9 | . . . . . 6 1 . 2 . . . . . . . Sneak Attacks . | . . . . . . . . . . . . . . . . Combat Hostiles . | . . . . . . . . . . . . . . . . Follow-up Attacks . | . . . . . . . . . . . . . . . . Damage Inflicted 3766 | . . 151 641 6 774 381 571 826 . . . . 291 . 125 Guns 2597 | . . 146 101 . 614 378 567 791 . . . . . . . Cannons . | . . . . . . . . . . . . . . . . Explosions 618 | . . . 540 . 78 . . . . . . . . . . Melee 531 | . . . . . 82 . . 35 . . . . 291 . 123 Ramming 20 | . . 5 . 6 . 3 4 . . . . . . . 2 Kinetic 2134 | . . 50 70 . 278 378 567 791 . . . . . . . Thermal 336 | . . . . . 336 . . . . . . . . . . Explosive 618 | . . . 540 . 78 . . . . . . . . . . Electromagnetic 127 | . . 96 31 . . . . . . . . . . . . Impact . | . . . . . . . . . . . . . . . . Slashing 414 | . . . . . . . . . . . . . 291 . 123 Piercing 117 | . . . . . 82 . . 35 . . . . . . . Highest Corruption 20 | . . . . . . . . . . . . . . . 20 Average Corruption 16 | . . . . . . . . . . . . . . . 16 Corruption Purged . | . . . . . . . . . . . . . . . . Corruption Blocked . | . . . . . . . . . . . . . . . . Effects 4 | . . . . . . . . . . . . . . . 4 Message Errors 1 | . . . . . . . . . . . . . . . 1 Heat Flow Errors 1 | . . . . . . . . . . . . . . . 1 Misdirections 2 | . . . . . . . . . . . . . . . 2 Overload Shots . | . . . . . . . . . . . . . . . . Overflow Damage 24 | . . . 4 . . . . . . . . . 20 . . Projectiles . | . . . . . . . . . . . . . . . . Explosions 4 | . . . 4 . . . . . . . . . . . . Melee 20 | . . . . . . . . . . . . . 20 . . Knockbacks . | . . . . . . . . . . . . . . . . Impact . | . . . . . . . . . . . . . . . . Kinetic . | . . . . . . . . . . . . . . . . Secondary . | . . . . . . . . . . . . . . . . Self-Inflicted Damage 85 | . . . 63 . 21 . . . . . . . . . 1 Shots 5 | . . . 4 . 1 . . . . . . . . . . Rammed 3 | . . . . . . 1 1 . . . . . . . 1 Targets Rammed 7 | . . 2 . 2 . 1 1 . . . . . . . 1 Kicked 4 | . . 2 . 2 . . . . . . . . . . . Crushed . | . . . . . . . . . . . . . . . . Highest Temperature 344 | . . 60 . . 258 138 196 344 . . . . . . 127 Average Temperature 86 | . . 31 . . 82 68 89 151 . . . . . . 75 Received Heat Transfer 937 | . 6 66 45 9 153 111 . 409 . . . . 12 9 117 Effects 3 | . . . . . 3 . . . . . . . . . . Interference 3 | . . . . . 3 . . . . . . . . . . Siege Activations . | . . . . . . . . . . . . . . . . Martial Activations . | . . . . . . . . . . . . . . . . Shielding Activations . | . . . . . . . . . . . . . . . . Robots Disrupted . | . . . . . . . . . . . . . . . . Combat Hostiles . | . . . . . . . . . . . . . . . . Robots Corrupted . | . . . . . . . . . . . . . . . . Combat Hostiles . | . . . . . . . . . . . . . . . . Parts Fried . | . . . . . . . . . . . . . . . . Impact Corruptions . | . . . . . . . . . . . . . . . . Robots Melted . | . . . . . . . . . . . . . . . . Combat Hostiles . | . . . . . . . . . . . . . . . . Parts Melted . | . . . . . . . . . . . . . . . . Heat Transferred 816 | . . . . . 816 . . . . . . . . . . Parts Sabotaged . | . . . . . . . . . . . . . . . . Parts Stolen . | . . . . . . . . . . . . . . . . Parts Stripped . | . . . . . . . . . . . . . . . . Power Chain Reactions . | . . . . . . . . . . . . . . . . Alert | -11 -10 -10 -10 -8 -8 -7 -6 -6 -6 -5 -5 -4 -3 -2 -1 ------- Run | Yrd Mat Min Sub Mat Sto Fac Fac Low Low Fac DSF Fac Res Res Acc Maximum Alert Level . | . . . . . . . . . . . . . . . . Low Security (%) 100 | 100 100 100 . 100 100 100 100 . . 100 100 100 100 100 100 Level 1 . | . . . . . . . . . . . . . . . . Level 2 . | . . . . . . . . . . . . . . . . Level 3 . | . . . . . . . . . . . . . . . . Level 4 . | . . . . . . . . . . . . . . . . Level 5 . | . . . . . . . . . . . . . . . . High Security . | . . . . . . . . . . . . . . . . Max Security . | . . . . . . . . . . . . . . . . Peak Influence 80 | . . 50 . 45 59 41 66 . . . 15 19 45 52 80 Initial 24 | . . . . . 18 18 2 . . . . 7 . 15 24 Average 12 | . . 5 . 3 16 8 25 . . . . 6 10 18 17 Influence Increases 1415 | . . 80 70 45 305 111 129 175 . . 15 12 113 72 288 Destroy 0b10 Robot/C 540 | . . 40 60 . 160 60 80 140 . . . . . . . Destroy 0b10 Robot/NC 25 | . . . . . 10 . 5 . . . . . 10 . . Destroy Leader 160 | . . 10 10 . 74 20 22 20 . . . . 4 . . Successful Hack 123 | . . . . . 30 . 6 . . . . 12 12 24 39 Disable Machine 30 | . . . . . 15 15 . . . . . . . . . Destroy Structure 42 | . . . . . 16 1 1 . . . . . 12 3 9 Partial Spotted 105 | . . . . . . . . . . . . . 30 15 60 Lose Combat Pursuer 390 | . . 30 . 45 . 15 15 15 . . 15 . 45 30 180 Influence Decreases 1335 | . . 80 70 . 308 146 117 194 . . . 27 86 57 250 Entered New Map 102 | . . . . . 27 24 5 8 . . . 8 . 12 18 Time Decay 1053 | . . 80 70 . 267 122 102 136 . . . 19 72 45 140 Lost Part 168 | . . . . . 14 . 10 50 . . . . 2 . 92 Purge Threat 12 | . . . . . . . . . . . . . 12 . . Squads Dispatched 11 | . . . . . . 2 . . . . . . 1 . 8 Investigation 4 | . . . . . . . . . . . . . 1 . 3 Extermination 3 | . . . . . . 1 . . . . . . . . 2 Reinforcement 4 | . . . . . . 1 . . . . . . . . 3 Assault . | . . . . . . . . . . . . . . . . Garrison . | . . . . . . . . . . . . . . . . Intercept . | . . . . . . . . . . . . . . . . Searches Triggered . | . . . . . . . . . . . . . . . . Construction Impeded . | . . . . . . . . . . . . . . . . Haulers Reinforced . | . . . . . . . . . . . . . . . . Active Scanning Responses . | . . . . . . . . . . . . . . . . Cargo Convoy Interrupts . | . . . . . . . . . . . . . . . . Stealth | -11 -10 -10 -10 -8 -8 -7 -6 -6 -6 -5 -5 -4 -3 -2 -1 --------- Run | Yrd Mat Min Sub Mat Sto Fac Fac Low Low Fac DSF Fac Res Res Acc Distress Signals 4 | . . . . . 1 . . . . . . 1 1 . 1 Communications Jammed 4 | . . . . . . . . . . . . . . . 4 Distress Signals 4 | . . . . . . . . . . . . . . . 4 Times Spotted 136 | . 2 4 9 6 11 7 7 12 . . 2 1 18 5 52 Peak Tracking Total 20 | . 2 2 4 6 2 4 3 7 . . 2 4 10 5 20 Tactical Retreats 15 | . . 1 . 1 . 1 1 1 . . 1 . 1 1 7 Traps | -11 -10 -10 -10 -8 -8 -7 -6 -6 -6 -5 -5 -4 -3 -2 -1 ------- Run | Yrd Mat Min Sub Mat Sto Fac Fac Low Low Fac DSF Fac Res Res Acc Traps Triggered 1 | . . . . . . . . . . . . . 1 . . Indirectly . | . . . . . . . . . . . . . . . . Trap Hack Attempts . | . . . . . . . . . . . . . . . . Triggered . | . . . . . . . . . . . . . . . . Disarmed . | . . . . . . . . . . . . . . . . Reprogrammed . | . . . . . . . . . . . . . . . . Reused . | . . . . . . . . . . . . . . . . Traps Extracted . | . . . . . . . . . . . . . . . . Installed . | . . . . . . . . . . . . . . . . Triggered . | . . . . . . . . . . . . . . . . Machines | -11 -10 -10 -10 -8 -8 -7 -6 -6 -6 -5 -5 -4 -3 -2 -1 ---------- Run | Yrd Mat Min Sub Mat Sto Fac Fac Low Low Fac DSF Fac Res Res Acc Machines Disabled 2 | . . . . . 1 1 . . . . . . . . . Max in Single Turn 1 | . . . . . 1 1 . . . . . . . . . Garrison Access 4 | . . . . . 1 . . . . . . . . 1 2 Machines Repaired . | . . . . . . . . . . . . . . . . Machines Dismantled . | . . . . . . . . . . . . . . . . Machines Sabotaged . | . . . . . . . . . . . . . . . . Overloaded Fab Kills . | . . . . . . . . . . . . . . . . Hacking | -11 -10 -10 -10 -8 -8 -7 -6 -6 -6 -5 -5 -4 -3 -2 -1 --------- Run | Yrd Mat Min Sub Mat Sto Fac Fac Low Low Fac DSF Fac Res Res Acc Machines Accessed 28 | . . . . 1 9 1 2 . . 1 . 1 1 3 9 Terminals 20 | . . . . . 7 1 1 . . 1 . 1 1 2 6 Fabricators . | . . . . . . . . . . . . . . . . Repair Stations 2 | . . . . . 1 . 1 . . . . . . . . Recycling Units 1 | . . . . 1 . . . . . . . . . . . Scanalyzers . | . . . . . . . . . . . . . . . . Garrison Access 5 | . . . . . 1 . . . . . . . . 1 3 Total Hacks 47 | . . . . 1 14 1 4 . . 1 . 2 4 5 15 Successful 23 | . . . . . 11 . 1 . . 1 . 1 2 3 4 Failed 24 | . . . . 1 3 1 3 . . . . 1 2 2 11 Catastrophic 7 | . . . . . 2 1 1 . . . . . . . 3 Database Lockouts . | . . . . . . . . . . . . . . . . Manual . | . . . . . . . . . . . . . . . . Terminals 34 | . . . . . 11 1 2 . . 1 . 2 4 4 9 Fabricators . | . . . . . . . . . . . . . . . . Repair Stations 3 | . . . . . 1 . 2 . . . . . . . . Recycling Units 1 | . . . . 1 . . . . . . . . . . . Scanalyzers . | . . . . . . . . . . . . . . . . Garrison Access 9 | . . . . . 2 . . . . . . . . 1 6 Terminal Hacks 17 | . . . . . 9 . . . . 1 . 1 2 2 2 Record 1 | . . . . . 1 . . . . . . . . . . Prototype ID Bank 2 | . . . . . 2 . . . . . . . . . . Open Door 1 | . . . . . 1 . . . . . . . . . . Open DSF 1 | . . . . . . . . . . 1 . . . . . Level Access Points 3 | . . . . . . . . . . . . . 1 1 1 Branch Access Points 1 | . . . . . . . . . . . . . . 1 . Terminal Index 1 | . . . . . . . . . . . . . . . 1 Alert Level 2 | . . . . . 2 . . . . . . . . . . Unreport Threat 1 | . . . . . . . . . . . . . 1 . . Locate Traps 1 | . . . . . 1 . . . . . . . . . . Patrol Status 1 | . . . . . . . . . . . . 1 . . . Zone Layout 2 | . . . . . 2 . . . . . . . . . . Fabricator Hacks . | . . . . . . . . . . . . . . . . Repair Station Hacks 2 | . . . . . 1 . 1 . . . . . . . . Refit 2 | . . . . . 1 . 1 . . . . . . . . Recycling Unit Hacks . | . . . . . . . . . . . . . . . . Scanalyzer . | . . . . . . . . . . . . . . . . Garrison Access Hacks 4 | . . . . . 1 . . . . . . . . 1 2 Seal Access 4 | . . . . . 1 . . . . . . . . 1 2 Unauthorized Hacks . | . . . . . . . . . . . . . . . . Terminals . | . . . . . . . . . . . . . . . . Fabricators . | . . . . . . . . . . . . . . . . Repair Stations . | . . . . . . . . . . . . . . . . Recycling Units . | . . . . . . . . . . . . . . . . Scanalyzers . | . . . . . . . . . . . . . . . . Garrison Access . | . . . . . . . . . . . . . . . . Data Cores Recovered . | . . . . . . . . . . . . . . . . Used . | . . . . . . . . . . . . . . . . Hacking Detections 18 | . . . . 1 3 1 2 . . . . 1 1 1 8 Full Trace Events 3 | . . . . . . . . . . . . . . . 3 Feedback Events 1 | . . . . . . . . . . . . . . . 1 Corruption 1 | . . . . . . . . . . . . . . . 1 Feedback Blocked . | . . . . . . . . . . . . . . . . Robot Schematics Acquired . | . . . . . . . . . . . . . . . . Robots Built . | . . . . . . . . . . . . . . . . Authchips . | . . . . . . . . . . . . . . . . Time . | . . . . . . . . . . . . . . . . Total Robot Build Rating . | . . . . . . . . . . . . . . . . Part Schematics Acquired . | . . . . . . . . . . . . . . . . Parts Built . | . . . . . . . . . . . . . . . . Authchips . | . . . . . . . . . . . . . . . . Time . | . . . . . . . . . . . . . . . . Total Part Build Rating . | . . . . . . . . . . . . . . . . Parts Repaired . | . . . . . . . . . . . . . . . . Time . | . . . . . . . . . . . . . . . . Parts Recycled . | . . . . . . . . . . . . . . . . Recycled Matter . | . . . . . . . . . . . . . . . . Retrieved Matter . | . . . . . . . . . . . . . . . . Retrieved Components . | . . . . . . . . . . . . . . . . Parts Scanalyzed . | . . . . . . . . . . . . . . . . Part Schematics Acquired . | . . . . . . . . . . . . . . . . Parts Damaged . | . . . . . . . . . . . . . . . . Bothacking | -11 -10 -10 -10 -8 -8 -7 -6 -6 -6 -5 -5 -4 -3 -2 -1 ------------ Run | Yrd Mat Min Sub Mat Sto Fac Fac Low Low Fac DSF Fac Res Res Acc Used RIF Installer . | . . . . . . . . . . . . . . . . Robots Hacked . | . . . . . . . . . . . . . . . . Non-combat . | . . . . . . . . . . . . . . . . Combat . | . . . . . . . . . . . . . . . . Robot Hacks Applied . | . . . . . . . . . . . . . . . . Relay Couplers Released . | . . . . . . . . . . . . . . . . Fabnet Peak Effective % . | . . . . . . . . . . . . . . . . Robots Rewired . | . . . . . . . . . . . . . . . . Allies Hacked . | . . . . . . . . . . . . . . . . Hacks Repelled . | . . . . . . . . . . . . . . . . Allies | -11 -10 -10 -10 -8 -8 -7 -6 -6 -6 -5 -5 -4 -3 -2 -1 -------- Run | Yrd Mat Min Sub Mat Sto Fac Fac Low Low Fac DSF Fac Res Res Acc Total Allies 2 | . . 2 . . . . . . . . . . . . . Largest Group 2 | . . 2 2 . . . . . . . . . . . . Highest-Rated Group 46 | . . 42 46 . . . . . . . . . . . . Highest-Rated Ally 31 | . . 31 31 . . . . . . . . . . . . Total Orders . | . . . . . . . . . . . . . . . . Ally Attacks 12 | . . . 12 . . . . . . . . . . . . Total Damage 273 | . . . 273 . . . . . . . . . . . . Kills 1 | . . . 1 . . . . . . . . . . . . Allies Corrupted . | . . . . . . . . . . . . . . . . Allies Melted . | . . . . . . . . . . . . . . . . Intel | -11 -10 -10 -10 -8 -8 -7 -6 -6 -6 -5 -5 -4 -3 -2 -1 ------- Run | Yrd Mat Min Sub Mat Sto Fac Fac Low Low Fac DSF Fac Res Res Acc Active Infowar (turns) 2550 | . . . . 51 482 476 277 545 . . . 57 235 112 315 Traps 1831 | . . . . 51 482 476 277 545 . . . . . . . Cloaking 488 | . . . . . . . . . . . . 57 235 112 84 Jamming 420 | . . . . . . . . . . . . . 20 85 315 ECM 60 | . . . . . . . . . . . . . . 1 59 Robot Analysis Total . | . . . . . . . . . . . . . . . . Derelict Logs Recovered 4 | . . 1 1 . . . . 1 1 . . . . . . Drone Launches . | . . . . . . . . . . . . . . . . Drone Recoveries . | . . . . . . . . . . . . . . . . Exploration | -11 -10 -10 -10 -8 -8 -7 -6 -6 -6 -5 -5 -4 -3 -2 -1 ------------- Run | Yrd Mat Min Sub Mat Sto Fac Fac Low Low Fac DSF Fac Res Res Acc Turns Passed 5132 | 82 48 666 544 136 864 504 277 1115 43 31 34 57 254 112 365 Spaces Moved 4928 | 64 40 526 420 108 439 304 148 728 116 71 83 146 587 251 897 Core 73 | 9 . . . . . . . . . . . . . . 64 Treads 1450 | . . . . . 415 304 148 583 . . . . . . . Legs 1173 | 55 40 526 420 108 24 . . . . . . . . . . Wheels . | . . . . . . . . . . . . . . . . Hover . | . . . . . . . . . . . . . . . . Flight 2232 | . . . . . . . . 145 116 71 83 146 587 251 833 Fastest Speed 31 | 50 120 120 120 120 120 157 157 37 37 37 34 34 31 32 37 Average Speed 92 | 110 120 120 120 120 152 157 160 142 37 37 36 34 32 36 38 Slowest Speed 170 | 120 120 120 120 120 157 157 166 170 37 37 37 34 37 37 50 Overloaded Moves . | . . . . . . . . . . . . . . . . Propulsion Burnouts . | . . . . . . . . . . . . . . . . Robots Hopped 73 | . . . . . . . . . . . . . 28 19 26 Potential Cave-ins . | . . . . . . . . . . . . . . . . Cave-ins Triggered . | . . . . . . . . . . . . . . . . Exploration Rate (%) 31 | 4 12 86 37 15 81 7 4 92 20 4 80 4 14 8 29 Regions Visited 15 Branch Regions 5 Pre-discovered Areas 2 | . . 1 1 . . . . . . . . . . . . Known Exits Taken 7 | . . . . . 1 . . 1 1 1 . 1 1 1 . Unknown Exits Taken 7 | 1 1 1 1 1 . 1 1 . . . . . . . . Scrap Searched 4 | . . 1 . . . . . 3 . . . . . . . Spaces Dug 11 | . . . . . 1 . . . . . . . 6 1 3 Terrain Destroyed 67 | . . . 42 . 15 . . . . . . . 6 1 3 Melee 11 | . . . . . 1 . . . . . . . 6 1 3 Projectile . | . . . . . . . . . . . . . . . . AOE 56 | . . . 42 . 14 . . . . . . . . . . Terrain Rammed . | . . . . . . . . . . . . . . . . Walls Destroyed . | . . . . . . . . . . . . . . . . Machines Disabled . | . . . . . . . . . . . . . . . . Actions | -11 -10 -10 -10 -8 -8 -7 -6 -6 -6 -5 -5 -4 -3 -2 -1 --------- Run | Yrd Mat Min Sub Mat Sto Fac Fac Low Low Fac DSF Fac Res Res Acc Total 5254 | 73 40 544 439 113 591 324 171 790 115 75 85 153 604 252 885 Wait 123 | . . 9 . . 81 . . 22 . . . . 10 . 1 Move 4784 | 63 39 525 419 107 438 303 147 727 115 70 82 145 537 217 850 Hop 56 | . . . . . . . . . . . . . 21 14 21 Pick Up 58 | 4 1 . 3 1 16 5 2 6 . 2 1 2 8 5 2 Fast Attach 21 | 5 . . . 2 3 1 . . . 1 1 1 4 2 1 Attach 28 | 1 . . 1 . 6 1 2 7 . 1 . 1 1 5 2 Detach 5 | . . . . . 4 . . . . . . 1 . . . Swap 11 | . . . . . 5 . 1 1 . . . 1 2 1 . Drop 40 | . . . . 1 5 4 1 8 . 1 1 2 8 7 2 Fire 93 | . . 8 16 . 27 8 17 17 . . . . . . . Melee 28 | . . . . . 6 1 . 2 . . . . 13 1 5 Ram 1 | . . . . . . . . . . . . . . . 1 Kick 4 | . . 2 . 2 . . . . . . . . . . . Crush 2 | . . . . . . 1 1 . . . . . . . . Escape Stasis . | . . . . . . . . . . . . . . . . Rewire . | . . . . . . . . . . . . . . . . Trap . | . . . . . . . . . . . . . . . . Miscellaneous . | . . . . . . . . . . . . . . . . Route ------- -11/Scrapyard -10/Materials -10/Mines (discovered 2 exits: [*Mat] / [*Sub]) -10/Subcaves -8/Materials (discovered 2 exits: Fac / *Sto) -8/Storage -7/Factory -6/Factory -6/Lower Caves -6/Lower Caves -5/Factory -5/DSF -4/Factory -3/Research (discovered 3 exits: *Res x3) -2/Research (discovered 5 exits: *Acc x3 / Qua x2) -1/Access (discovered 1 exit: Sur) History --------- Turn | Location | Event 5 | -11/Scrapyard | Discovered new exit (range 16) 83 | -11/Scrapyard | Entered Materials 83 | -10/Materials | Discovered new exit (range 7) 131 | -10/Materials | Entered Mines 208 | -10/Mines | Discovered new exit (range 14) 312 | -10/Mines | Build established: Mutant 535 | -10/Mines | Learned Materials emergency access door positions 650 | -10/Mines | Learned location of Storage (-8) 783 | -10/Mines | Discovered new exit (range 6) 797 | -10/Mines | Entered Subcaves 797 | -10/Subcaves | Accompanied by 2 allies 798 | -10/Subcaves | Approached by a straggling Scientist 802 | -10/Subcaves | Led the pair of lost Derelicts to an unsafe place 992 | -10/Subcaves | Shifting Twisted Machinery released Sub. Monowheel 1006 | -10/Subcaves | Shifting Twisted Machinery released Mak. Spear 1187 | -10/Subcaves | Learned location of Zion (-7) 1187 | -10/Subcaves | Met a Zionite searching for "candidates" 1215 | -10/Subcaves | Learned 2 Materials zone layouts 1320 | -10/Subcaves | Discovered new exit (range 8) 1341 | -10/Subcaves | Entered Materials 1341 | -8/Materials | Evolved 4 slots: Power x1, Weapon x3 1341 | -8/Materials | Discovered new exit (range 7) 1342 | -8/Materials | Identified exit to Factory 1477 | -8/Materials | Entered Storage 2268 | -8/Storage | Discovered exit to Factory (range 15) 2341 | -8/Storage | Entered Factory 2341 | -7/Factory | Evolved 2 slots: Utility x2 2659 | -7/Factory | Build established: Gunner 2679 | -7/Factory | Discovered new exit (range 13) 2845 | -7/Factory | Entered another Factory area 2845 | -6/Factory | Evolved 2 slots: Propulsion x1, Utility x1 2902 | -6/Factory | Discovered new exit (range 6) 3122 | -6/Factory | Entered Lower Caves 3226 | -6/Lower Caves | Encountered a Warlord checkpoint 3266 | -6/Lower Caves | Build established: Tank 3301 | -6/Lower Caves | Spotted B-75 Beast 3555 | -6/Lower Caves | Lost 5 parts (2p1n2w) 3803 | -6/Lower Caves | Build established: Mutant 3887 | -6/Lower Caves | Identified exit to Lower Caves 4227 | -6/Lower Caves | Found DRS Beacon 4237 | -6/Lower Caves | Entered another Lower Caves area 4239 | -6/Lower Caves | Learned Factory emergency access door positions 4275 | -6/Lower Caves | Discovered new exit (range 8) 4277 | -6/Lower Caves | Identified exit to Factory 4280 | -6/Lower Caves | Entered Factory 4280 | -5/Factory | Evolved 2 slots: Utility x2 4311 | -5/Factory | Identified exit to DSF 4311 | -5/Factory | Entered DSF 4329 | -5/DSF | Additional patrols routed to DSF 4338 | -5/DSF | Discovered new exit (range 15) 4344 | -5/DSF | Identified exit to Factory 4345 | -5/DSF | Entered Factory 4345 | -4/Factory | Evolved 2 slots: Utility x1, Weapon x1 4387 | -4/Factory | Discovered new exit (range 10) 4402 | -4/Factory | Identified exit to Research 4402 | -4/Factory | Entered Research 4402 | -3/Research | Evolved 2 slots: Power x1, Propulsion x1 4563 | -3/Research | Identified exit to Research 4577 | -3/Research | Found Prototype Launcher 4577 | -3/Research | Identified Hellfire Missile Launcher 4580 | -3/Research | Found Hellfire Missile Launcher 4656 | -3/Research | Entered another Research area 4656 | -2/Research | Evolved 2 slots: Propulsion x1, Utility x1 4702 | -2/Research | Identified exit to Quarantine 4750 | -2/Research | Identified exit to Access 4768 | -2/Research | Entered Access 4768 | -1/Access | Evolved 2 slots: Propulsion x1, Weapon x1 4887 | -1/Access | Spotted B-99 Colossus 4899 | -1/Access | Spotted B-99 Colossus 5075 | -1/Access | Identified exit to Surface 5086 | -1/Access | System corruption reached 10% 5104 | -1/Access | Core integrity fell below 50% 5123 | -1/Access | Core integrity fell below 20% 5131 | -1/Access | Spotted B-99 Colossus 5132 | -1/Access | Spotted B-99 Colossus 5133 | -1/Access | Destroyed by B-99 Colossus with Multirail Last Messages --------------- 05103_ C-30 ARC bursts open, deploying its payload. 05103_ P-80 Master unfolds itself. 05106_ Impulse Thruster Array destroyed. 05106_ Knocked back. 05106_ P-80 Master knocked back. 05106_ U-05 Engineer knocked back. 05106_ P-80 Master knocked back. 05107_ U-05 Engineer lays Concrete. 05113_ System corrupted: Heat flow error (+179). 05122_ Connecting with Garrison Access... 05122_ ALERT: Suspicious activity at Garrison Access A005. Dispatching Investigation squad. 05131_ Slammed into R-10 Processor. 05132_ Slug penetrates Wall. 05132_ Penetrated by Slug. 05133_ Knocked back. 05133_ Slug penetrates Door. 05133_ Penetrated by Slug. [Achievement: Tester] Map ----- +----------------------------------------------------+ | ?????????????????????????????????????????????????? | | ?????????????????????????????????????????????????? | | ?????????????????????????????????????????????????? | | ?????????????????????????????????????????????????? | | ?????????????????????????????????????????????????? | | ?????????????????????????????????????????????????? | | ?????????????????????????????????????????????????? | | ?????????????????????????????????????????????????? | | ?????????????????????????????????????????????????? | | ?????????????????????????????????????????????????? | | ??????????????????????? ??????????????????????? | | ??????????????????????# ??????????????????????? | | ??????????????????????+ ??????????????????????? | | ??????????????????????# #?????????????????????? | | ??????????????????????# #?????????????????????? | | ??????????????????????# #?????????????????????? | | ??????????????????????#u ###########+##????????? | | ??????????????????????# # +????????? | | ??????????????????????# # #????????? | | ??????????????????????#k # "" #????????? | | ??????????????????????# # """ #????????? | | ??????????????????????# # "F #????????? | | ??????????????????????# # """ #????????? | | ??????????????????????#% w# """ #??? ????? | | ??????????????????????# # """ #??? ????? | | ??????????????????????# @ + #??? ????? | | ??????????????????????+ c;R c #??? ????? | | ??????????????????????# # k s #??? ????? | | ??????????????????????# %# ps #??? ????? | | ??????????????????????# ###########+##??? ????? | | ????????????????????? ?????????# ##### #???? | | ???????????????????? ?????????# #???? | | ???????????????????# ?????####/##### #???? | | ???????????????????# ?????# # #???? | | ???????????????????# BB BB ????# # #???? | | ???????????????????# BB BB ????# " # #???? | | ???????????????????# #???# """ # ##### | | ???????????????????#""""""""""#???# G + | | ??????????????????????????????????# [ """ # | | ??????????????????????????????????# " ####### | | ??????????????????????????????????# #?????? | | ??????????????????????????????????# = #?????? | | ??????????????????????????????????##########?????? | | ??????????? ?????????????????????????????????????? | | ??????????? ?????????????????????????????????????? | | ??????????? ?????????????